[Event "Live Chess"]
[Site "Chess.com"]
[Date "2018.01.18"]
[White "LLkhagvasuren"]
[Black "Arugamama"]
[Result "0-1"]
[ECO "D60"]
[WhiteElo "1635"]
[BlackElo "1828"]
[TimeControl "1800"]
[EndTime "22:57:14 PST"]
[Termination "Arugamama won by resignation"]
[CurrentPosition "2r3k1/p2nb1p1/1p2p2p/4B3/8/PP3R1P/q1r2PP1/4R1K1 w - - 0 30"]

1.d4 {[%clk 0:29:45]} d5 {[%clk 0:29:56]} 2.c4 {[%clk 0:29:40]} e6 {[%clk 0:29:49]} 3.Nc3 {[%clk 0:29:35]} Nf6 {[%clk 0:29:44]} 4.Bg5 {[%clk 0:29:30]} Be7 {[%clk 0:29:40]} 5.e3 {[%clk 0:29:12]} O-O {[%clk 0:29:31]} 6.Nf3 {[%clk 0:29:06]} Nbd7 {[%clk 0:29:14]} 7.Bd3 {[%clk 0:29:00]} c5 {[%clk 0:29:05]} 8.O-O {[%clk 0:28:53]} cxd4 {[%clk 0:28:48]} 9.exd4 {[%clk 0:28:48]} dxc4 {[%clk 0:28:07]} 10.Bxc4 {[%clk 0:28:43]} b6 {[%clk 0:27:40]} 11.Qd3 {[%clk 0:28:36]} Bb7 {[%clk 0:27:28]} 12.Rfe1 {[%clk 0:28:31]} Rc8 {[%clk 0:27:15]} 13.a3 {[%clk 0:28:02]} h6 {[%clk 0:26:49]} 14.Bh4 {[%clk 0:27:50]} Re8 {[%clk 0:25:41]} 15.Rad1 {[%clk 0:25:52]} Bxf3 {[%clk 0:24:32]} 16.Qxf3 {[%clk 0:25:34]} Rxc4 {[%clk 0:24:26]} 17.Bg3 {[%clk 0:24:47]} Qc8 {[%clk 0:23:36]} 18.h3 {[%clk 0:23:57]} Qc6 {[%clk 0:23:01]} 19.Qd3 {[%clk 0:23:42]} Nd5 {[%clk 0:21:24]} 20.Ne4 {[%clk 0:22:19]} N7f6 {[%clk 0:19:41]} 21.b3 {[%clk 0:21:04]} Rc2 {[%clk 0:19:14]} 22.Be5 {[%clk 0:19:28]} Nxe4 {[%clk 0:17:36]} 23.Qxe4 {[%clk 0:19:21]} Qc3 {[%clk 0:16:54]} 24.Rd3 {[%clk 0:19:01]} Qb2 {[%clk 0:16:39]} 25.Rf3 {[%clk 0:18:49]} Nf6 {[%clk 0:16:01]} 26.Qd3 {[%clk 0:18:09]} Rec8 {[%clk 0:15:40]} 27.d5 {[%clk 0:17:54]} Qa2 {[%clk 0:14:55]} 28.dxe6 {[%clk 0:17:45]} fxe6 {[%clk 0:14:39]} 29.Qd7 {[%clk 0:17:41]} Nxd7 {[%clk 0:14:36]}  0-1